bitfinex/quotes_SOLUSD_20241123
["timestamp","ask_amount","ask_price","bid_price","bid_amount"]
[1732381237833,9.46651601,256.28,256.19,9.46651601]
[1732381238155,9.46651601,256.28,256.2,24.91066175]
[1732381239054,9.46651601,256.28,256.2,20.0]
[1732381239355,9.46651601,256.26,256.17,9.46651601]
[1732381239543,9.46651601,256.26,256.2,4.91066175]
[1732381240062,9.46651601,256.28,256.2,4.91066175]
[1732381240353,9.46651601,256.3,256.22,20.0]
[1732381240543,9.46651601,256.32,256.23,9.46651601]
[1732381241136,9.46651601,256.3,256.22,20.0]
[1732381241734,9.46651601,256.3,256.22,24.91066175]
[1732381242134,9.46651601,256.28,256.22,4.91066175]
[1732381242335,9.46651601,256.3,256.22,4.91066175]
[1732381242533,9.46651601,256.32,256.22,4.91066175]
[1732381242755,9.46651601,256.25,256.16,29.46651601]
[1732381242943,9.46651601,256.25,256.16,34.37717776]
[1732381243245,9.46651601,256.25,256.17,4.91066175]
[1732381243439,9.46651601,256.23,256.17,4.91066175]
[1732381244758,10.0,256.35,256.17,4.91066175]
[1732381244759,9.46651601,256.25,256.17,4.91066175]
[1732381244952,9.46651601,256.25,256.17,14.37717776]
[1732381245152,9.46651601,256.27,256.17,4.91066175]
[1732381245454,9.46651601,256.27,256.18,9.46651601]
[1732381245759,9.46651601,256.27,256.2,9.46651601]
[1732381245964,9.46651601,256.27,256.21,4.91066175]
[1732381246560,9.46651601,256.29,256.21,24.91066175]
[1732381246760,9.46651601,256.29,256.21,20.0]
[1732381247553,9.46651601,256.27,256.18,9.46651601]
[1732381247733,9.46651601,256.27,256.19,20.0]
[1732381248185,9.46651601,256.25,256.18,4.91066175]
[1732381249144,19.46651601,256.36,256.18,4.91066175]
[1732381249145,9.46651601,256.28,256.21,9.46651601]
[1732381249350,9.46651601,256.32,256.24,20.0]
[1732381249751,5.92109688,256.44,256.38,128.33348399]
[1732381250057,9.46651601,256.42,256.33,9.46651601]
[1732381250365,9.46651601,256.42,256.36,20.0]
[1732381250738,9.46651601,256.4,256.33,14.37717776]
[1732381250942,9.46651601,256.4,256.34,20.0]
[1732381251141,9.46651601,256.36,256.3,0.39016777]
[1732381251355,10.0,256.48,256.3,0.39016777]
[1732381251356,9.46651601,256.34,256.3,0.39016777]
[1732381253449,9.46651601,256.32,256.3,0.39016777]
[1732381262854,20.0,256.31,256.3,0.39016777]
[1732381263198,9.46651601,256.32,256.3,0.39016777]
[1732381264668,26.5762,256.41,256.3,0.39016777]
[1732381264873,9.46651601,256.36,256.3,0.39016777]
[1732381266167,9.46651601,256.38,256.3,0.39016777]
[1732381266362,9.46651601,256.36,256.31,5.13455064]
[1732381267369,9.46651601,256.38,256.31,5.13455064]
[1732381267574,9.46651601,256.36,256.31,5.13455064]
[1732381268180,9.46651601,256.32,256.3,0.39016777]
[1732381269269,9.46651601,256.36,256.3,5.52471841]
[1732381269476,9.46651601,256.36,256.31,5.13455064]
[1732381269972,9.46651601,256.34,256.31,5.13455064]
[1732381271373,10.0,256.44,256.31,5.13455064]
[1732381271374,9.46651601,256.36,256.31,5.13455064]
[1732381272851,9.46651601,256.34,256.31,5.13455064]
[1732381273475,9.46651601,256.36,256.31,5.13455064]
[1732381274053,9.46651601,256.4,256.31,14.60106665]
[1732381274449,9.46651601,256.38,256.31,5.13455064]
[1732381274654,9.46651601,256.36,256.31,5.13455064]
[1732381275168,9.46651601,256.39,256.31,5.13455064]
[1732381275378,9.46651601,256.39,256.32,9.46651601]
[1732381275581,9.46651601,256.39,256.33,5.13455064]
[1732381275953,9.46651601,256.35,256.3,0.39016777]
[1732381276275,9.46651601,256.31,256.3,0.39016777]
[1732381276663,9.46651601,256.31,256.3,5.52471841]
[1732381277380,9.46651601,256.33,256.3,5.52471841]
[1732381277578,9.46651601,256.36,256.31,5.13455064]
[1732381277783,33.24340001,256.32,256.31,5.13455064]
[1732381277953,23.776884,256.31,256.3,0.39016777]
[1732381278159,23.776884,256.31,256.3,5.5198073]
[1732381278482,6.00289946,256.41,256.3,5.5198073]
[1732381278674,9.46651601,256.35,256.3,5.5198073]
[1732381278871,9.46651601,256.35,256.31,5.12963953]
[1732381279175,9.46651601,256.33,256.31,5.12963953]
[1732381279678,9.46651601,256.33,256.3,0.39016777]
[1732381279872,9.46651601,256.31,256.3,0.39016777]
[1732381280672,9.46651601,256.35,256.3,5.21575174]
[1732381280890,9.46651601,256.37,256.31,5.04947286]
[1732381281059,9.46651601,256.39,256.31,5.04947286]
[1732381281262,9.46651601,256.37,256.31,5.04947286]
[1732381281589,9.46651601,256.33,256.31,5.04947286]
[1732381282660,43.776884,256.41,256.31,5.04947286]
[1732381282859,9.46651601,256.35,256.31,5.04947286]
[1732381283372,9.46651601,256.37,256.31,5.04947286]
[1732381283965,9.46651601,256.39,256.31,5.04947286]
[1732381284175,9.46651601,256.39,256.32,37.1178]
[1732381284381,9.46651601,256.39,256.33,5.28058397]
[1732381285705,9.46651601,256.49,256.33,5.28058397]
[1732381285706,9.46651601,256.45,256.36,9.46651601]
[1732381285885,6.00289946,256.47,256.33,5.28058397]
[1732381285886,9.46651601,256.47,256.4,9.46651601]
[1732381286067,9.46651601,256.47,256.41,5.4828062]
[1732381286262,9.46651601,256.45,256.41,5.4828062]
[1732381286479,9.46651601,256.43,256.35,5.4828062]
[1732381286670,9.46651601,256.43,256.37,5.4828062]
[1732381287283,9.46651601,256.47,256.38,29.46651601]
[1732381287481,9.46651601,256.47,256.39,5.4828062]
[1732381287672,9.46651601,256.45,256.39,5.4828062]
[1732381288270,9.46651601,256.41,256.39,5.4828062]
[1732381288664,9.46651601,256.41,256.32,37.1178]
[1732381288864,9.46651601,256.39,256.32,37.1178]
[1732381289675,9.46651601,256.37,256.32,37.1178]
[1732381289868,9.46651601,256.35,256.3,0.39016777]
[1732381291382,9.46651601,256.33,256.3,0.39016777]
[1732381291974,9.46651601,256.39,256.3,9.85668378]
[1732381292170,9.46651601,256.39,256.3,14.79146775]
[1732381292366,9.46651601,256.37,256.3,5.32495174]
[1732381292599,9.46651601,256.35,256.3,5.32495174]
[1732381293270,9.46651601,256.37,256.3,14.79146775]
[1732381293481,9.46651601,256.39,256.31,4.93478397]
[1732381293673,9.46651601,256.41,256.32,9.46651601]
[1732381293889,9.46651601,256.41,256.33,4.93478397]
[1732381294289,9.46651601,256.43,256.34,9.46651601]
[1732381294493,15.46941547,256.49,256.35,4.93478397]
[1732381294494,9.46651601,256.41,256.35,4.93478397]
[1732381295892,9.46651601,256.39,256.35,4.93478397]
[1732381296076,23.776884,256.45,256.35,4.93478397]
[1732381296077,9.46651601,256.41,256.35,4.93478397]
[1732381296487,9.46651601,256.43,256.35,4.93478397]
[1732381296677,9.46651601,256.43,256.35,9.17745581]
[1732381296874,9.46651601,256.39,256.3,9.85668378]
[1732381297076,9.46651601,256.39,256.33,4.9277062]
[1732381297280,9.46651601,256.37,256.33,4.9277062]
[1732381297500,9.46651601,256.37,256.3,0.39016777]
[1732381297898,10.0,256.44,256.3,0.39016777]
[1732381297899,9.46651601,256.35,256.3,0.39016777]
[1732381298204,9.46651601,256.32,256.3,0.39016777]
[1732381299094,23.776884,256.31,256.3,0.39016777]
[1732381300105,43.776884,256.31,256.3,0.39016777]
[1732381301595,23.776884,256.31,256.3,0.39016777]
[1732381302493,43.776884,256.31,256.3,0.39016777]
[1732381303795,10.0,256.3,256.18,10.5591]
[1732381304002,9.46651601,256.22,256.18,10.5591]
[1732381305087,9.46651601,256.22,256.16,4.65497853]
[1732381305292,9.46651601,256.2,256.16,4.65497853]
[1732381305694,9.46651601,256.18,256.16,4.65497853]
[1732381306279,9.46651601,256.22,256.16,4.65497853]
[1732381307691,9.46651601,256.2,256.16,4.65497853]
[1732381307886,9.46651601,256.18,256.12,4.00929785]
[1732381308194,9.46651601,256.14,256.12,4.00929785]
[1732381308684,9.46651601,256.14,256.06,10.8636]
[1732381308882,9.46651601,256.15,256.06,20.33011601]
[1732381309376,9.46651601,256.15,256.06,24.08650565]
[1732381309581,9.46651601,256.13,256.07,3.75638964]
[1732381309804,9.46651601,256.15,256.07,3.75638964]
[1732381310208,20.0,256.21,256.07,3.75638964]
[1732381310209,9.46651601,256.13,256.07,3.75638964]
[1732381310790,20.0,256.21,256.08,3.64818674]
[1732381311101,9.46651601,256.19,256.1,9.46651601]
[1732381311293,9.46651601,256.17,256.11,3.64818674]
[1732381311998,9.46651601,256.17,256.11,7.40457638]
[1732381312304,9.46651601,256.19,256.11,7.40457638]
[1732381312502,9.46651601,256.19,256.11,3.64818674]
[1732381312684,9.46651601,256.19,256.12,3.75638964]
[1732381313215,9.46651601,256.19,256.12,7.40457638]
[1732381313701,9.46651601,256.19,256.12,3.75638964]
[1732381315003,9.46651601,256.23,256.15,9.46651601]
[1732381315218,9.46651601,256.23,256.16,3.75638964]
[1732381315500,9.46651601,256.19,256.11,9.46651601]
[1732381315885,21.0561,256.33,256.11,9.46651601]
[1732381315886,9.46651601,256.21,256.11,9.46651601]
[1732381317807,10.0,256.28,256.11,9.46651601]
[1732381317808,9.46651601,256.19,256.11,9.46651601]
[1732381317987,9.46651601,256.19,256.09,12.84749454]
[1732381318310,23.776884,256.27,256.09,3.38097853]
[1732381318311,9.46651601,256.17,256.09,3.38097853]
[1732381319316,9.46651601,256.13,256.09,3.38097853]
[1732381319603,9.46651601,256.15,256.09,3.38097853]
[1732381320010,9.46651601,256.15,256.07,9.46651601]
[1732381320192,9.46651601,256.17,256.07,9.46651601]
[1732381320388,9.46651601,256.19,256.11,9.46651601]
[1732381320590,9.46651601,256.19,256.12,3.68431186]
[1732381320983,9.46651601,256.17,256.12,3.68431186]
[1732381322090,9.46651601,256.15,256.12,3.68431186]
[1732381322695,9.46651601,256.13,256.06,10.8636]
[1732381323796,9.46651601,256.15,256.07,9.46651601]
[1732381323999,9.46651601,256.11,256.07,3.60501186]
[1732381324204,9.46651601,256.09,256.07,3.60501186]
[1732381324508,9.46651601,256.09,256.0,10.8636]
[1732381324701,9.46651601,256.04,256.0,10.8636]
[1732381324895,9.46651601,256.06,256.0,10.8636]
[1732381325311,9.46651601,256.09,256.0,20.33011601]
[1732381325494,9.46651601,256.11,256.02,9.46651601]
[1732381326003,9.46651601,256.09,256.0,20.33011601]
[1732381326319,9.46651601,256.11,256.02,9.46651601]
[1732381326612,9.46651601,256.13,256.06,9.46651601]
[1732381326822,9.46651601,256.15,256.06,9.46651601]
[1732381327410,9.46651601,256.13,256.04,9.46651601]
[1732381328289,9.46651601,256.11,256.03,2.74987186]
[1732381329024,9.46651601,256.09,256.0,10.8636]
[1732381329194,9.46651601,256.13,256.04,9.46651601]
[1732381331117,9.46651601,256.11,256.02,9.46651601]
[1732381331702,9.46651601,256.09,256.0,10.8636]
[1732381332203,10.0,256.18,255.97,26.9528]
[1732381332204,9.46651601,256.05,255.97,26.9528]
[1732381332505,9.46651601,256.07,255.97,26.9528]
[1732381332819,9.46651601,256.11,256.02,9.46651601]
[1732381333597,9.46651601,256.09,256.0,9.46651601]
[1732381334515,9.46651601,256.07,255.98,9.46651601]
[1732381334825,9.46651601,256.04,255.97,26.9528]
[1732381335007,9.46651601,256.04,255.94,10.6068]
[1732381335008,9.46651601,256.0,255.94,10.6068]
[1732381335209,9.46651601,256.0,255.91,37.17221601]
[1732381336424,9.46651601,256.0,255.92,23.776884]
[1732381336624,9.46651601,256.1,255.77,11.3508]
[1732381336625,23.776884,255.92,255.77,11.3508]
[1732381336806,9.46651601,255.79,255.77,11.3508]
[1732381337003,9.46651601,255.81,255.77,11.3508]
[1732381337219,9.46651601,255.83,255.77,11.3508]
[1732381338403,9.46651601,255.81,255.77,17.81068139]
[1732381338605,33.776884,255.96,255.7,27.7539]
[1732381338606,15.22185064,255.78,255.7,27.7539]
[1732381338808,15.22185064,255.76,255.7,27.7539]
[1732381339219,15.22185064,255.72,255.64,10.0]
[1732381339403,15.22185064,255.73,255.63,11.3508]
[1732381339609,15.22185064,255.73,255.65,15.22185064]
[1732381339804,15.22185064,255.73,255.63,26.57265064]
[1732381340020,15.22185064,255.71,255.63,11.3508]
[1732381340220,15.22185064,255.69,255.63,11.3508]
[1732381340616,15.22185064,255.69,255.61,15.22185064]
[1732381340815,15.22185064,255.71,255.63,15.22185064]
[1732381341214,15.22185064,255.73,255.65,15.22185064]
[1732381341436,15.22185064,255.77,255.67,15.22185064]
[1732381341731,15.22185064,255.81,255.73,15.22185064]
[1732381341935,26.136,255.9,255.77,15.22185064]
[1732381341936,15.22185064,255.86,255.77,15.22185064]
[1732381342928,15.22185064,255.88,255.79,15.22185064]
[1732381343132,11.3678,255.94,255.71,15.22185064]
[1732381343133,15.22185064,255.94,255.85,15.22185064]
[1732381343310,15.22185064,255.94,255.77,10.0]
[1732381343311,15.22185064,255.94,255.87,15.22185064]
[1732381343513,15.22185064,255.92,255.83,15.22185064]
[1732381343711,15.22185064,255.88,255.8,11.3508]
[1732381343942,15.22185064,255.88,255.79,15.22185064]
[1732381344234,15.22185064,255.92,255.83,15.22185064]
[1732381344410,15.22185064,255.94,255.85,15.22185064]
[1732381344612,15.22185064,255.94,255.76,27.7539]
[1732381344613,15.22185064,255.96,255.87,15.22185064]
[1732381344948,15.22185064,256.0,255.92,15.22185064]
[1732381345243,15.22185064,255.96,255.88,15.22185064]
[1732381345412,15.22185064,255.94,255.86,15.22185064]
[1732381345615,15.22185064,255.92,255.78,23.776884]
[1732381345814,15.22185064,255.9,255.82,15.22185064]
[1732381346030,15.22185064,255.9,255.8,15.22185064]
[1732381346248,10.0,256.01,255.82,15.22185064]
[1732381346249,15.22185064,255.92,255.82,15.22185064]
[1732381346536,15.22185064,255.96,255.88,15.22185064]
[1732381346744,26.136,256.04,255.9,15.22185064]
[1732381346745,15.22185064,256.0,255.9,15.22185064]
[1732381347056,15.22185064,255.98,255.9,15.22185064]
[1732381347359,15.22185064,255.94,255.84,15.22185064]
[1732381347514,15.22185064,255.92,255.82,15.22185064]
[1732381347719,15.22185064,255.92,255.84,15.22185064]
[1732381347937,15.22185064,255.9,255.81,15.22185064]
[1732381348241,15.22185064,255.84,255.75,15.22185064]
[1732381348753,15.22185064,255.86,255.77,15.22185064]
[1732381349135,15.22185064,255.84,255.75,15.22185064]
[1732381349948,35.7452,255.9,255.73,15.22185064]
[1732381350244,15.22185064,255.77,255.69,15.22185064]
[1732381350950,15.22185064,255.77,255.68,11.3587]
[1732381350951,15.22185064,255.79,255.71,15.22185064]
[1732381351119,15.22185064,255.86,255.77,15.22185064]
[1732381351620,15.22185064,255.88,255.79,15.22185064]
[1732381351822,15.22185064,255.9,255.81,15.22185064]
[1732381352346,40.96705064,255.96,255.87,15.22185064]
[1732381352553,15.22185064,255.96,255.87,15.22185064]
[1732381352844,10.3548,255.99,255.8,15.22185064]
[1732381352845,15.22185064,255.9,255.8,15.22185064]
[1732381353226,15.22185064,255.86,255.78,15.22185064]
[1732381353827,15.22185064,255.84,255.76,15.22185064]
[1732381354048,15.22185064,255.84,255.68,16.11068161]
[1732381354049,15.22185064,255.84,255.74,15.22185064]
[1732381354534,15.22185064,255.81,255.72,15.22185064]
[1732381356549,15.22185064,255.85,255.76,15.22185064]
[1732381356753,15.22185064,255.87,255.78,15.22185064]
[1732381356969,15.22185064,255.89,255.8,15.22185064]
[1732381357128,15.22185064,255.93,255.84,15.22185064]
[1732381357332,15.22185064,255.93,255.84,20.20494336]
[1732381357537,15.22185064,255.93,255.84,15.22185064]
[1732381357759,15.22185064,255.89,255.8,15.22185064]
[1732381358047,15.22185064,255.87,255.78,15.22185064]
[1732381358240,15.22185064,255.92,255.84,15.22185064]
[1732381358429,15.22185064,255.92,255.82,15.22185064]
[1732381358628,15.22185064,255.92,255.84,15.22185064]
[1732381358935,15.22185064,255.92,255.85,4.98309272]
[1732381359132,15.22185064,255.94,255.85,4.98309272]
[1732381359455,15.22185064,255.95,255.85,20.20494336]
[1732381359953,15.22185064,255.95,255.86,4.98309272]
[1732381360335,15.22185064,255.93,255.83,15.22185064]
[1732381360837,15.22185064,255.93,255.83,20.20494336]
[1732381361032,10.3548,255.99,255.85,15.22185064]
[1732381361033,15.22185064,255.95,255.85,15.22185064]
[1732381361358,15.22185064,255.95,255.86,4.98309272]
[1732381361753,15.22185064,255.95,255.87,15.22185064]
[1732381361952,15.22185064,255.99,255.91,15.22185064]
[1732381362162,15.22185064,256.03,255.93,15.22185064]
[1732381362456,15.22185064,256.01,255.93,15.22185064]
[1732381362654,15.22185064,256.01,255.93,20.20494336]
[1732381362954,15.22185064,256.01,255.91,15.22185064]
[1732381363142,15.22185064,255.99,255.91,15.22185064]
[1732381363655,10.3548,256.05,255.84,15.22185064]
[1732381363656,15.22185064,255.93,255.84,15.22185064]
[1732381363829,23.776884,256.04,255.84,15.22185064]
[1732381363830,15.22185064,255.95,255.86,15.22185064]
[1732381364035,15.22185064,255.91,255.81,11.3587]
[1732381364236,15.22185064,255.89,255.81,11.3587]
[1732381364853,15.22185064,255.89,255.8,15.22185064]
[1732381365263,15.22185064,255.83,255.76,4.98309272]
[1732381365556,15.22185064,255.81,255.72,20.20494336]
[1732381365852,15.22185064,255.79,255.73,4.98309272]
[1732381366232,15.22185064,255.82,255.73,4.98309272]
[1732381366437,10.0,255.89,255.73,4.98309272]
[1732381366438,15.22185064,255.8,255.73,4.98309272]
[1732381367159,15.22185064,255.78,255.73,4.98309272]
[1732381367458,15.22185064,255.8,255.73,4.98309272]
[1732381368559,15.22185064,255.78,255.69,10.2782]
[1732381369347,15.22185064,255.78,255.69,15.08962049]
[1732381369563,15.22185064,255.8,255.7,15.22185064]
[1732381369743,15.22185064,255.8,255.7,20.03327113]
[1732381370258,15.22185064,255.82,255.72,15.22185064]
[1732381370460,15.22185064,255.82,255.73,4.66336494]
[1732381370641,10.0,255.89,255.73,4.66336494]
[1732381370642,15.22185064,255.8,255.73,4.66336494]
[1732381370968,15.22185064,255.82,255.73,4.66336494]
[1732381371150,15.22185064,255.8,255.72,15.22185064]
[1732381371771,15.22185064,255.8,255.7,15.22185064]
[1732381372682,15.22185064,255.78,255.7,15.22185064]
[1732381372976,15.22185064,255.8,255.7,15.22185064]
[1732381373161,15.22185064,255.78,255.69,10.2782]
[1732381373345,15.22185064,255.8,255.7,15.22185064]
[1732381373858,15.22185064,255.78,255.69,10.2782]
[1732381375985,15.22185064,255.76,255.66,15.22185064]
[1732381377467,15.22185064,255.74,255.64,15.22185064]
[1732381377766,15.22185064,255.74,255.62,26.7062]
[1732381377767,15.22185064,255.72,255.62,41.92805064]
[1732381378477,15.22185064,255.72,255.64,15.22185064]
[1732381378657,15.22185064,255.84,255.64,15.22185064]
[1732381378658,15.22185064,255.74,255.64,15.22185064]
[1732381378977,15.22185064,255.72,255.64,15.22185064]
[1732381379557,15.22185064,255.74,255.64,15.22185064]
[1732381380171,15.22185064,255.72,255.64,15.22185064]
[1732381380362,27.8351,255.79,255.62,26.7062]
[1732381380363,15.22185064,255.77,255.67,15.22185064]
[1732381380567,15.22185064,255.75,255.65,15.22185064]
[1732381380767,27.8351,255.79,255.63,15.22185064]
[1732381380768,15.22185064,255.73,255.63,15.22185064]
[1732381382563,14.0,255.64,255.63,15.22185064]
[1732381382763,0.01438614,255.64,255.63,15.22185064]
[1732381383185,0.01438614,255.64,255.61,26.48075064]
[1732381384259,0.01438614,255.64,255.61,15.22185064]
[1732381385055,0.01438614,255.64,255.63,4.66258656]
[1732381385754,0.01438614,255.64,255.51,0.58675565]
[1732381386087,0.01438614,255.64,255.48,37.9651]
[1732381386088,0.01438614,255.64,255.55,15.22185064]
[1732381386267,15.22185064,255.63,255.53,15.22185064]
[1732381386468,15.22185064,255.61,255.51,15.22185064]
[1732381388288,15.22185064,255.63,255.55,15.22185064]
[1732381389579,15.22185064,255.61,255.51,15.22185064]
[1732381390192,15.22185064,255.57,255.49,15.22185064]
[1732381390387,15.22185064,255.59,255.49,15.22185064]
[1732381391357,0.01438614,255.64,255.49,15.22185064]
[1732381391358,15.22185064,255.61,255.51,15.22185064]
[1732381391859,15.22185064,255.61,255.53,15.22185064]
[1732381392960,15.22185064,255.63,255.56,23.776884]
[1732381393192,0.01438614,255.64,255.56,23.776884]
[1732381394061,0.01438614,255.64,255.61,15.22185064]
[1732381394257,0.01438614,255.64,255.63,15.22185064]
[1732381394462,0.01438614,255.64,255.63,43.24080833]
[1732381394661,0.01438614,255.64,255.63,60.86559359]
[1732381394883,0.01438614,255.64,255.63,51.34895769]
[1732381395179,0.01438614,255.64,255.63,60.86559359]
[1732381395391,0.01438614,255.64,255.63,51.34895769]
[1732381395561,0.01438614,255.64,255.63,28.01895769]
[1732381395961,0.01438614,255.64,255.63,4.24207369]
[1732381403887,0.01438614,255.64,255.54,6.71025251]
[1732381403888,9.53102204,255.64,255.56,23.776884]
[1732381404776,9.5166359,255.62,255.56,4.12225702]
[1732381406085,9.5166359,255.6,255.56,4.12225702]
[1732381406368,9.5166359,255.57,255.44,23.33]
[1732381406566,9.5166359,255.55,255.45,9.5166359]
[1732381407787,9.5166359,255.59,255.51,9.5166359]
[1732381408096,9.5166359,255.61,255.51,9.5166359]
[1732381408303,9.5166359,255.63,255.53,9.5166359]
[1732381408499,9.5166359,255.63,255.54,23.776884]
[1732381408992,9.5166359,255.61,255.54,23.776884]
[1732381409377,0.01438614,255.64,255.54,23.776884]
[1732381409378,9.5166359,255.63,255.55,9.5166359]
[1732381409912,9.5166359,255.63,255.54,27.56157435]
[1732381410294,0.01438614,255.64,255.54,27.56157435]
[1732381410295,9.5166359,255.61,255.54,3.78469035]
[1732381411487,0.01438614,255.64,255.54,3.78469035]
[1732381411488,9.5166359,255.59,255.54,3.78469035]
[1732381411888,0.01438614,255.64,255.55,9.5166359]
[1732381412088,9.53102204,255.64,255.56,4.06635702]
[1732381412610,0.01438614,255.64,255.6,9.5166359]
[1732381412811,0.01438614,255.64,255.61,28.11046324]
[1732381413198,0.01438614,255.64,255.57,23.776884]
[1732381413918,9.53102204,255.64,255.55,23.776884]
[1732381414817,9.53102204,255.64,255.55,27.42211324]
[1732381415803,9.5166359,255.62,255.55,3.64522924]
[1732381415992,9.5166359,255.6,255.55,3.64522924]
[1732381417092,9.5166359,255.62,255.55,3.64522924]
[1732381417516,9.5166359,255.62,255.55,26.97522924]
[1732381417728,9.5166359,255.6,255.55,26.97522924]
[1732381418012,9.53102204,255.64,255.56,27.53856258]
[1732381418214,9.5166359,255.62,255.56,31.18016311]
[1732381418396,9.5166359,255.6,255.56,3.64160053]
[1732381418605,8.2304359,255.6,255.56,3.64160053]
[1732381420421,9.5166359,255.58,255.56,3.64160053]
[1732381420594,9.5166359,255.58,255.53,3.9973848]
[1732381420794,9.5166359,255.55,255.53,3.9973848]
[1732381423413,9.5166359,255.55,255.51,3.64160053]
[1732381423896,9.5166359,255.53,255.51,3.64160053]
[1732381424895,9.5166359,255.55,255.51,8.14454088]
[1732381425217,9.5166359,255.55,255.52,4.50294035]
[1732381429699,11.03358614,255.64,255.52,4.50294035]
[1732381429700,9.5166359,255.53,255.52,4.50294035]
[1732381431703,9.5166359,255.53,255.51,3.64160053]
[1732381431905,9.5166359,255.53,255.45,23.64160053]
[1732381432117,9.5166359,255.51,255.45,23.64160053]
[1732381432916,9.5166359,255.51,255.46,3.64160053]
[1732381434102,9.5166359,255.51,255.46,7.59492977]
[1732381434521,9.5166359,255.54,255.47,20.0]
[1732381434819,9.5166359,255.54,255.47,23.64160053]
[1732381436325,9.51663584,255.52,255.47,3.64160053]
[1732381437734,9.51663584,255.52,255.47,7.59492977]
[1732381438433,25.9207,255.6,255.48,27.41848453]
[1732381438434,9.5166359,255.56,255.48,27.41848453]
[1732381438632,9.5166359,255.58,255.48,101.81024967]
[1732381438926,9.5166359,255.6,255.52,47.106884]
[1732381439107,9.5166359,255.6,255.53,11.95237213]
[1732381439711,9.5166359,255.58,255.53,11.95237213]
[1732381440329,9.5166359,255.62,255.53,11.95237213]
[1732381441129,9.5166359,255.62,255.54,23.776884]
[1732381441311,9.5166359,255.62,255.55,4.48777369]
[1732381441504,9.5166359,255.64,255.56,23.776884]
[1732381441821,9.5166359,255.62,255.57,8.41104089]
[1732381442843,9.5166359,255.6,255.57,8.41104089]
[1732381443409,9.5166359,255.58,255.57,8.41104089]
[1732381443639,9.5166359,255.58,255.57,3.9232672]
[1732381444027,9.5166359,255.58,255.48,9.5166359]
[1732381444217,9.5166359,255.56,255.46,9.5166359]
[1732381444714,9.5166359,255.56,255.46,12.88761976]
[1732381446023,9.5166359,255.56,255.47,3.37098386]
[1732381446749,9.5166359,255.54,255.47,3.37098386]
[1732381447035,9.5166359,255.54,255.42,9.5166359]
[1732381447250,9.5166359,255.52,255.42,9.5166359]
[1732381447433,9.5166359,255.5,255.41,23.33]
[1732381447839,9.5166359,255.48,255.41,23.33]
[1732381448631,25.1265,255.58,255.45,32.8466359]
[1732381448823,9.5166359,255.55,255.46,23.776884]
[1732381449126,25.1265,255.58,255.23,10.4298]
[1732381449127,10.0,255.44,255.23,10.4298]
[1732381449346,10.0,255.44,255.18,26.4955]
[1732381449347,9.5166359,255.27,255.18,26.4955]
[1732381449526,9.5166359,255.25,255.18,26.4955]
[1732381449738,9.5166359,255.23,255.17,10.4298]
[1732381449937,9.5166359,255.19,255.09,19.9464359]
[1732381450255,9.5166359,255.17,255.1,23.33]
[1732381451232,9.5166359,255.19,255.13,20.0]
[1732381451635,9.5166359,255.17,255.09,19.9464359]
[1732381451832,9.5166359,255.17,255.07,32.8466359]
[1732381452559,9.5166359,255.13,255.03,19.9464359]
[1732381453052,9.5166359,255.13,255.05,9.5166359]
[1732381453822,9.5166359,255.13,255.06,23.776884]
[1732381454245,9.5166359,255.15,255.06,23.776884]
[1732381454955,9.5166359,255.15,255.07,9.5166359]
[1732381455342,9.5166359,255.17,255.07,9.5166359]
[1732381455654,9.5166359,255.15,255.07,9.5166359]
[1732381457249,9.5166359,255.17,255.09,9.5166359]
[1732381457648,9.5166359,255.17,255.1,23.776884]
[1732381458054,9.5166359,255.19,255.11,9.5166359]
[1732381458383,9.5166359,255.23,255.15,9.5166359]
[1732381459535,9.5166359,255.23,255.13,9.5166359]
[1732381459840,9.5166359,255.19,255.11,9.5166359]
[1732381460039,9.5166359,255.19,255.12,23.776884]
[1732381460355,9.5166359,255.19,255.11,9.5166359]
[1732381460864,9.5166359,255.17,255.08,9.5166359]
[1732381461240,9.5166359,255.15,255.06,9.5166359]
[1732381462762,9.5166359,255.13,255.06,9.5166359]
[1732381462970,9.5166359,255.13,255.04,9.5166359]
[1732381463140,9.5166359,255.15,255.06,9.5166359]
[1732381464262,9.5166359,255.15,255.08,9.5166359]
[1732381464449,9.5166359,255.15,255.06,9.5166359]
[1732381464764,9.5166359,255.13,255.06,9.5166359]
[1732381464972,9.5166359,255.11,255.02,9.5166359]
[1732381465457,9.5166359,255.09,255.0,9.5166359]
[1732381465847,9.5166359,255.09,255.02,9.5166359]
[1732381466045,9.5166359,255.09,255.0,9.5166359]
[1732381467057,9.5166359,255.03,254.86,23.33]
[1732381467362,9.5166359,255.03,254.95,9.5166359]
[1732381467750,9.5166359,255.03,254.93,9.5166359]
[1732381467956,9.5166359,255.01,254.92,9.5166359]
[1732381468441,9.5166359,254.99,254.91,9.5166359]
[1732381468646,9.5166359,254.99,254.81,23.33]
[1732381468849,9.5166359,254.99,254.91,8.5166359]
[1732381469057,9.5166359,255.01,254.93,9.5166359]
[1732381469244,19.6354359,255.03,254.95,9.5166359]
[1732381469440,26.1563,255.04,254.83,23.33]